[Event "15th Governor Cup 2019"]
[Site "Khanty-Mansiysk"]
[Date "2019.11.23"]
[Round "7.3"]
[White "Timofeev, Artyom"]
[Black "Bocharov, Dmitry"]
[Result "1/2-1/2"]
[ECO "E51"]
[WhiteElo "2595"]
[BlackElo "2519"]
[Annotator "ChessBase"]
[PlyCount "109"]
[EventDate "2019.11.19"]
[EventType "swiss"]
[EventCountry "RUS"]
[SourceTitle "playchess.com"]
[Source "ChessBase"]
[SourceQuality "1"]
[TimeControl "5400+30"]

1. d4 {[%emt 0:00:00]} Nf6 {[%emt 0:05:34]} 2. c4 {[%emt 0:00:00]} e6 {[%emt 0:00:12]} 3. Nc3 {[%emt 0:00:03]} Bb4 {[%emt 0:00:11]} 4. e3 {[%emt 0:00:09]} O-O {[%emt 0:00:19]} 5. Nf3 {[%emt 0:00:24]} d5 {[%emt 0:00:50]} 6. Bd2 {[%emt 0:00:53]} b6 {[%emt 0:02:30]} 7. Rc1 {[%emt 0:05:04]} Bb7 {[%emt 0:02:08]} 8. cxd5 {[%emt 0:00:36]} exd5 {[%emt 0:00:21]} 9. Nb5 {[%emt 0:00:33]} Bxd2+ {[%emt 0:00:22]} 10. Qxd2 {[%emt 0:02:59]} c5 {[%emt 0:02:54]} 11. Be2 {[%emt 0:03:22]} a6 {[%emt 0:03:40]} 12. Nc3 {[%emt 0:01:23]} c4 {[%emt 0:01:00]} 13. Ne5 {[%emt 0:04:47]} b5 {[%emt 0:04:26]} 14. f4 {[%emt 0:00:27]} Nc6 {[%emt 0:09:14]} 15. Bf3 {[%emt 0:03:31]} Ne7 {[%emt 0:05:49]} 16. O-O {[%emt 0:06:37]} Ne8 {[%emt 0:04:53]} 17. Ne2 {[%emt 0:06:48]} f6 {[%emt 0:03:48]} 18. Ng4 {[%emt 0:00:04]} Nd6 {[%emt 0:01:37]} 19. b3 {[%emt 0:01:00]} Qd7 {[%emt 0:02:42]} 20. Ng3 {[%emt 0:02:54]} Rac8 {[%emt 0:05:17]} 21. Rfe1 {[%emt 0:03:42]} Rc7 {[%emt 0:02:09]} 22. bxc4 {[%emt 0:01:13]} Nxc4 {[%emt 0:05:21]} 23. Qe2 {[%emt 0:02:29]} Nc8 {[%emt 0:01:12]} 24. Nf2 {[%emt 0:01:37]} Re8 {[%emt 0:01:00]} 25. Nf1 {[%emt 0:01:24]} N8b6 {[%emt 0:03:16]} 26. Nd3 {[%emt 0:01:08]} Na4 {[%emt 0:02:22]} 27. Qf2 {[%emt 0:05:01]} Qd6 {[%emt 0:02:13]} 28. Bd1 {[%emt 0:02:03]} Nab6 {[%emt 0:09:54]} 29. Bh5 {[%emt 0:02:17]} g6 {[%emt 0:01:40]} 30. Bf3 {[%emt 0:00:35]} Rce7 {[%emt 0:02:32]} 31. f5 {[%emt 0:01:28]} Bc8 {[%emt 0:02:06]} 32. fxg6 {[%emt 0:01:37]} hxg6 {[%emt 0:00:08]} 33. Nf4 {[%emt 0:01:39]} g5 {[%emt 0:02:51]} 34. Nh5 {[%emt 0:01:02]} Rf8 {[%emt 0:04:00]} 35. h4 {[%emt 0:08:40]} Rh7 {[%emt 0:03:08]} 36. Be2 {[%emt 0:00:10]} Kh8 {[%emt 0:00:40]} 37. Nh2 {[%emt 0:09:15]} Qe7 {[%emt 0:00:45]} 38. Bd1 {[%emt 0:05:12]} Bd7 {[%emt 0:01:11]} 39. Nf1 {[%emt 0:05:37]} Nc8 {[%emt 0:02:01]} 40. e4 {[%emt 0:01:22]} dxe4 {[%emt 0:00:53]} 41. Ne3 {[%emt 0:00:22]} Nxe3 {[%emt 0:01:04]} 42. Qxe3 {[%emt 0:00:31]} Nd6 {[%emt 0:00:20]} 43. hxg5 {[%emt 0:00:38]} fxg5 {[%emt 0:00:12]} 44. Rc5 {[%emt 0:00:07]} Nc4 {[%emt 0:01:05]} 45. Qc3 {[%emt 0:03:01]} Qf7 {[%emt 0:00:49]} 46. d5+ {[%emt 0:02:30]} Kg8 {[%emt 0:00:02]} 47. Qg3 {[%emt 0:00:10]} e3 {[%emt 0:01:24]} 48. Qxg5+ {[%emt 0:01:33]} Kh8 {[%emt 0:00:02]} 49. Bf3 {[%emt 0:01:30]} Qf5 {[%emt 0:00:58]} 50. Qxf5 {[%emt 0:01:40]} Rxf5 {[%emt 0:00:17]} 51. Ng3 {[%emt 0:00:15]} Re5 {[%emt 0:00:24]} 52. Ne4 {[%emt 0:01:36]} Bf5 {[%emt 0:00:37]} 53. d6 {[%emt 0:00:59]} Rxc5 {[%emt 0:00:52]} 54. Nxc5 {[%emt 0:00:05]} Nxd6 {[%emt 0:00:28]} 55. Rxe3 {[%emt 0:00:39]} 1/2-1/2

[Event "15th Governor Cup 2019"]
[Site "Khanty-Mansiysk"]
[Date "2019.11.23"]
[Round "7.4"]
[White "Ponkratov, Pavel"]
[Black "Guseva, Marina"]
[Result "1-0"]
[ECO "B90"]
[WhiteElo "2619"]
[BlackElo "2366"]
[Annotator "ChessBase"]
[PlyCount "115"]
[EventDate "2019.11.19"]
[EventType "swiss"]
[EventCountry "RUS"]
[SourceTitle "playchess.com"]
[Source "ChessBase"]
[SourceQuality "1"]
[TimeControl "5400+30"]

1. e4 {[%emt 0:04:27]} c5 {[%emt 0:00:00]} 2. Nf3 {[%emt 0:00:23]} d6 {[%emt 0:00:00]} 3. d4 {[%emt 0:00:06]} cxd4 {[%emt 0:00:00]} 4. Nxd4 {[%emt 0:00:03]} Nf6 {[%emt 0:00:00]} 5. Nc3 {[%emt 0:00:36]} a6 {[%emt 0:00:00]} 6. a4 {[%emt 0:00:04]} e5 {[%emt 0:02:58]} 7. Nf3 {[%emt 0:00:17]} Nc6 {[%emt 0:00:55]} 8. Bc4 {[%emt 0:00:06]} Be7 {[%emt 0:00:04]} 9. O-O {[%emt 0:00:15]} Be6 {[%emt 0:06:36]} 10. Qe2 {[%emt 0:07:00]} O-O {[%emt 0:05:33]} 11. Nd5 {[%emt 0:00:52]} Bxd5 {[%emt 0:01:02]} 12. exd5 {[%emt 0:00:15]} Nb8 {[%emt 0:00:03]} 13. a5 {[%emt 0:00:50]} Nbd7 {[%emt 0:00:08]} 14. b4 {[%emt 0:00:46]} Nh5 {[%emt 0:01:37]} 15. Bb3 {[%emt 0:03:12]} Bf6 {[%emt 0:00:17]} 16. Be3 {[%emt 0:08:55]} Re8 {[%emt 0:07:46]} 17. Nd2 {[%emt 0:08:50]} g6 {[%emt 0:03:15]} 18. Nc4 {[%emt 0:02:14]} Qe7 {[%emt 0:02:38]} 19. Ba4 {[%emt 0:00:05]} Rab8 {[%emt 0:03:18]} 20. Rab1 {[%emt 0:06:27]} Red8 {[%emt 0:05:37]} 21. Rfd1 {[%emt 0:22:29]} Ng7 {[%emt 0:12:52]} 22. Bxd7 {[%emt 0:02:54]} Rxd7 {[%emt 0:00:21]} 23. Nb6 {[%emt 0:00:04]} Rdd8 {[%emt 0:02:23]} 24. c4 {[%emt 0:00:06]} Bg5 {[%emt 0:02:19]} 25. Bxg5 {[%emt 0:00:49]} Qxg5 {[%emt 0:00:04]} 26. c5 {[%emt 0:00:03]} Ne8 {[%emt 0:00:05]} 27. Rbc1 {[%emt 0:03:56]} Qe7 {[%emt 0:02:39]} 28. Qc4 {[%emt 0:00:44]} Kg7 {[%emt 0:01:00]} 29. h3 {[%emt 0:03:36]} Nf6 {[%emt 0:01:46]} 30. c6 {[%emt 0:00:21]} Qc7 {[%emt 0:00:05]} 31. Rc2 {[%emt 0:01:40]} Re8 {[%emt 0:01:14]} 32. Rdc1 {[%emt 0:00:12]} Re7 {[%emt 0:02:03]} 33. b5 {[%emt 0:00:05]} axb5 {[%emt 0:00:24]} 34. Qxb5 {[%emt 0:02:05]} h5 {[%emt 0:07:28]} 35. Qb4 {[%emt 0:00:42]} Rd8 {[%emt 0:02:19]} 36. cxb7 {[%emt 0:04:19]} Qxb7 {[%emt 0:00:03]} 37. Rc6 {[%emt 0:00:03]} Ne8 {[%emt 0:04:01]} 38. Qc4 {[%emt 0:02:49]} Qb8 {[%emt 0:00:25]} 39. a6 {[%emt 0:01:12]} Ra7 {[%emt 0:00:48]} 40. Nc8 {[%emt 0:00:43]} Ra8 {[%emt 0:00:05]} 41. Qa4 {[%emt 0:01:57]} Qb2 {[%emt 0:04:13]} 42. Qa5 {[%emt 0:00:16]} Rd7 {[%emt 0:01:33]} 43. Nb6 {[%emt 0:00:05]} Rda7 {[%emt 0:00:11]} 44. Nxa8 {[%emt 0:00:07]} Rxa8 {[%emt 0:00:02]} 45. Rc8 {[%emt 0:00:48]} Nf6 {[%emt 0:00:16]} 46. R8c2 {[%emt 0:01:47]} Qd4 {[%emt 0:00:21]} 47. Ra1 {[%emt 0:02:19]} Ra7 {[%emt 0:01:15]} 48. Qc3 {[%emt 0:03:31]} Qe4 {[%emt 0:05:25]} 49. Qc4 {[%emt 0:00:27]} Qf5 {[%emt 0:00:58]} 50. Rb2 {[%emt 0:00:22]} Ne4 {[%emt 0:00:33]} 51. Qd3 {[%emt 0:00:12]} Kf6 {[%emt 0:01:46]} 52. Qe3 {[%emt 0:00:44]} Nc5 {[%emt 0:00:11]} 53. Rb6 {[%emt 0:00:03]} Ke7 {[%emt 0:00:38]} 54. Rb7+ {[%emt 0:01:36]} Rxb7 {[%emt 0:00:14]} 55. axb7 {[%emt 0:00:08]} Nxb7 {[%emt 0:00:10]} 56. Qa7 {[%emt 0:01:27]} Qd7 {[%emt 0:00:06]} 57. Qb6 {[%emt 0:00:04]} Qc8 {[%emt 0:00:15]} 58. Ra7 {[%emt 0:00:14]} 1-0

[Event "15th Governor Cup 2019"]
[Site "Khanty-Mansiysk"]
[Date "2019.11.23"]
[Round "7.5"]
[White "Volkov, Sergey"]
[Black "Savitskiy, Sergey"]
[Result "1-0"]
[ECO "D20"]
[WhiteElo "2572"]
[BlackElo "2396"]
[Annotator "ChessBase"]
[PlyCount "65"]
[EventDate "2019.11.19"]
[EventType "swiss"]
[EventCountry "RUS"]
[SourceTitle "playchess.com"]
[Source "ChessBase"]
[SourceQuality "1"]
[TimeControl "5400+30"]

1. d4 {[%emt 0:00:00]} d5 {[%emt 0:01:16]} 2. c4 {[%emt 0:00:00]} dxc4 {[%emt 0:00:08]} 3. e3 {[%emt 0:00:15]} e5 {[%emt 0:03:21]} 4. Bxc4 {[%emt 0:00:57]} Nc6 {[%emt 0:00:12]} 5. Nf3 {[%emt 0:00:38]} e4 {[%emt 0:00:07]} 6. Qb3 {[%emt 0:00:35]} Nh6 {[%emt 0:09:05]} 7. Nfd2 {[%emt 0:00:30]} f5 {[%emt 0:02:29]} 8. Nc3 {[%emt 0:00:47]} a6 {[%emt 0:02:00]} 9. Be2 {[%emt 0:01:29]} Bd6 {[%emt 0:03:04]} 10. Nc4 {[%emt 0:00:54]} Nf7 {[%emt 0:00:49]} 11. Bd2 {[%emt 0:01:58]} O-O {[%emt 0:01:42]} 12. O-O {[%emt 0:05:09]} Kh8 {[%emt 0:01:35]} 13. Rfd1 {[%emt 0:01:25]} Qh4 {[%emt 0:01:12]} 14. Nxd6 {[%emt 0:05:48]} Nxd6 {[%emt 0:00:20]} 15. Be1 {[%emt 0:00:19]} f4 {[%emt 0:13:43]} 16. exf4 {[%emt 0:07:08]} Qxf4 {[%emt 0:00:23]} 17. Nd5 {[%emt 0:00:22]} Qf7 {[%emt 0:00:56]} 18. Ne3 {[%emt 0:00:18]} Qg6 {[%emt 0:04:43]} 19. Rac1 {[%emt 0:01:19]} Bh3 {[%emt 0:09:49]} 20. Bf1 {[%emt 0:05:52]} Rf7 {[%emt 0:08:44]} 21. Kh1 {[%emt 0:01:49]} Bd7 {[%emt 0:02:08]} 22. Rc5 {[%emt 0:04:28]} Re8 {[%emt 0:05:26]} 23. Qc3 {[%emt 0:02:30]} Nf5 {[%emt 0:13:54]} 24. Nxf5 {[%emt 0:06:24]} Bxf5 {[%emt 0:00:09]} 25. d5 {[%emt 0:01:39]} Ne5 {[%emt 0:00:46]} 26. Rxc7 {[%emt 0:01:32]} Rxc7 {[%emt 0:01:07]} 27. Qxc7 {[%emt 0:00:02]} Bg4 {[%emt 0:09:17]} 28. Ra1 {[%emt 0:05:46]} Nd3 {[%emt 0:03:02]} 29. d6 {[%emt 0:10:10]} Qf5 {[%emt 0:01:33]} 30. h3 {[%emt 0:01:42]} e3 {[%emt 0:01:26]} 31. hxg4 {[%emt 0:01:20]} Nxf2+ {[%emt 0:00:28]} 32. Bxf2 {[%emt 0:03:01]} Qxf2 {[%emt 0:00:06]} 33. d7 {[%emt 0:00:13]} 1-0

[Event "15th Governor Cup 2019"]
[Site "Khanty-Mansiysk"]
[Date "2019.11.23"]
[Round "7.6"]
[White "Frolyanov, Dmitry"]
[Black "Lugovskoy, Maxim"]
[Result "1-0"]
[ECO "C03"]
[WhiteElo "2556"]
[BlackElo "2444"]
[Annotator "ChessBase"]
[PlyCount "51"]
[EventDate "2019.11.19"]
[EventType "swiss"]
[EventCountry "RUS"]
[SourceTitle "playchess.com"]
[Source "ChessBase"]
[SourceQuality "1"]
[TimeControl "5400+30"]

1. e4 {[%emt 0:00:00]} e6 {[%emt 0:00:16]} 2. d4 {[%emt 0:00:00]} d5 {[%emt 0:00:08]} 3. Nd2 {[%emt 0:00:14]} a6 {[%emt 0:00:55]} 4. Ngf3 {[%emt 0:01:16]} Bd7 {[%emt 0:00:04]} 5. c4 {[%emt 0:03:03]} dxc4 {[%emt 0:01:08]} 6. Bxc4 {[%emt 0:02:52]} b5 {[%emt 0:01:22]} 7. Bd3 {[%emt 0:02:42]} c5 {[%emt 0:00:20]} 8. O-O {[%emt 0:01:46]} cxd4 {[%emt 0:01:17]} 9. e5 {[%emt 0:02:16]} Nc6 {[%emt 0:01:26]} 10. Ne4 {[%emt 0:02:39]} Be7 {[%emt 0:05:33]} 11. a3 {[%emt 0:13:31]} h6 {[%emt 0:07:45]} 12. Re1 {[%emt 0:03:58]} g5 {[%emt 0:08:24]} 13. h3 {[%emt 0:03:47]} Qc7 {[%emt 0:09:29]} 14. Ng3 {[%emt 0:04:38]} Rd8 {[%emt 0:14:46]} 15. Bd2 {[%emt 0:04:58]} Bc8 {[%emt 0:02:25]} 16. Rc1 {[%emt 0:01:19]} Bb7 {[%emt 0:00:03]} 17. Nh5 {[%emt 0:12:44]} Kf8 {[%emt 0:00:20]} 18. h4 {[%emt 0:01:50]} gxh4 {[%emt 0:19:25]} 19. Nh2 {[%emt 0:01:43]} f5 {[%emt 0:01:59]} 20. exf6 {[%emt 0:07:21]} Bd6 {[%emt 0:00:24]} 21. Nf3 {[%emt 0:00:36]} h3 {[%emt 0:03:22]} 22. Ng7 {[%emt 0:06:23]} Qd7 {[%emt 0:02:41]} 23. Nxe6+ {[%emt 0:01:42]} Kf7 {[%emt 0:00:04]} 24. Bf5 {[%emt 0:03:54]} Kxf6 {[%emt 0:00:27]} 25. Bxh3 {[%emt 0:00:24]} Re8 {[%emt 0:01:02]} 26. Nfxd4 {[%emt 0:04:18]} 1-0

[Event "15th Governor Cup 2019"]
[Site "Khanty-Mansiysk"]
[Date "2019.11.23"]
[Round "7.7"]
[White "Khanin, Semen"]
[Black "Rozum, Ivan"]
[Result "1/2-1/2"]
[ECO "B13"]
[WhiteElo "2503"]
[BlackElo "2593"]
[Annotator "ChessBase"]
[PlyCount "59"]
[EventDate "2019.11.19"]
[EventType "swiss"]
[EventCountry "RUS"]
[SourceTitle "playchess.com"]
[Source "ChessBase"]
[SourceQuality "1"]
[TimeControl "5400+30"]

1. e4 {[%emt 0:00:00]} c6 {[%emt 0:06:04]} 2. d4 {[%emt 0:00:00]} d5 {[%emt 0:00:03]} 3. exd5 {[%emt 0:00:00]} cxd5 {[%emt 0:00:17]} 4. Bd3 {[%emt 0:00:00]} Nf6 {[%emt 0:01:01]} 5. h3 {[%emt 0:00:07]} g6 {[%emt 0:01:46]} 6. Nf3 {[%emt 0:02:08]} Bf5 {[%emt 0:00:59]} 7. Ne5 {[%emt 0:04:57]} Bxd3 {[%emt 0:00:49]} 8. Nxd3 {[%emt 0:02:12]} Nc6 {[%emt 0:01:36]} 9. c3 {[%emt 0:00:04]} Bg7 {[%emt 0:01:59]} 10. O-O {[%emt 0:00:07]} O-O {[%emt 0:01:41]} 11. Bf4 {[%emt 0:00:09]} Re8 {[%emt 0:03:38]} 12. Re1 {[%emt 0:04:37]} Nd7 {[%emt 0:03:03]} 13. Nd2 {[%emt 0:01:58]} e5 {[%emt 0:02:11]} 14. dxe5 {[%emt 0:01:06]} Ndxe5 {[%emt 0:00:04]} 15. Bxe5 {[%emt 0:04:34]} Nxe5 {[%emt 0:01:06]} 16. Nxe5 {[%emt 0:00:35]} Rxe5 {[%emt 0:00:41]} 17. Rxe5 {[%emt 0:01:04]} Bxe5 {[%emt 0:00:02]} 18. Nf3 {[%emt 0:00:18]} Bf6 {[%emt 0:02:01]} 19. Qb3 {[%emt 0:03:28]} Qd7 {[%emt 0:01:05]} 20. Rd1 {[%emt 0:07:04]} Rd8 {[%emt 0:00:31]} 21. a4 {[%emt 0:14:30]} a6 {[%emt 0:01:46]} 22. Nd4 {[%emt 0:08:04]} Qe7 {[%emt 0:15:37]} 23. Nf3 {[%emt 0:12:58]} d4 {[%emt 0:07:44]} 24. cxd4 {[%emt 0:07:42]} Bxd4 {[%emt 0:00:28]} 25. Nxd4 {[%emt 0:01:02]} Rxd4 {[%emt 0:00:07]} 26. Rxd4 {[%emt 0:00:03]} Qe1+ {[%emt 0:00:04]} 27. Kh2 {[%emt 0:00:02]} Qe5+ {[%emt 0:00:04]} 28. Kg1 {[%emt 0:00:03]} Qe1+ {[%emt 0:00:06]} 29. Kh2 {[%emt 0:00:03]} Qe5+ {[%emt 0:00:04]} 30. Kg1 {[%emt 0:00:06]} 1/2-1/2

[Event "15th Governor Cup 2019"]
[Site "Khanty-Mansiysk"]
[Date "2019.11.23"]
[Round "7.8"]
[White "Bocharov, Ivan"]
[Black "Afanasiev, Nikita"]
[Result "1/2-1/2"]
[ECO "C45"]
[WhiteElo "2571"]
[BlackElo "2508"]
[Annotator "ChessBase"]
[PlyCount "81"]
[EventDate "2019.11.19"]
[EventType "swiss"]
[EventCountry "RUS"]
[SourceTitle "playchess.com"]
[Source "ChessBase"]
[SourceQuality "1"]
[TimeControl "5400+30"]

1. e4 {[%emt 0:00:00]} e5 {[%emt 0:00:00]} 2. Nf3 {[%emt 0:00:00]} Nc6 {[%emt 0:00:00]} 3. d4 {[%emt 0:00:00]} exd4 {[%emt 0:00:34]} 4. Nxd4 {[%emt 0:00:00]} Bc5 {[%emt 0:00:10]} 5. Nb3 {[%emt 0:00:00]} Bb6 {[%emt 0:00:13]} 6. Nc3 {[%emt 0:00:03]} Nf6 {[%emt 0:00:16]} 7. Bg5 {[%emt 0:00:58]} h6 {[%emt 0:00:29]} 8. Bh4 {[%emt 0:00:06]} d6 {[%emt 0:00:26]} 9. Bd3 {[%emt 0:02:35]} Be6 {[%emt 0:08:38]} 10. Nd5 {[%emt 0:08:47]} Bxd5 {[%emt 0:08:09]} 11. exd5 {[%emt 0:00:01]} Qe7+ {[%emt 0:00:15]} 12. Kf1 {[%emt 0:05:43]} Ne5 {[%emt 0:01:15]} 13. Qd2 {[%emt 0:04:18]} g5 {[%emt 0:12:31]} 14. Bg3 {[%emt 0:00:06]} Nxd3 {[%emt 0:00:59]} 15. Qxd3 {[%emt 0:00:19]} O-O-O {[%emt 0:00:17]} 16. a4 {[%emt 0:09:40]} a5 {[%emt 0:05:18]} 17. Re1 {[%emt 0:01:45]} Qd7 {[%emt 0:00:47]} 18. Qf3 {[%emt 0:01:21]} Ng4 {[%emt 0:01:21]} 19. h3 {[%emt 0:14:56]} h5 {[%emt 0:13:47]} 20. Nd2 {[%emt 0:08:35]} Ne5 {[%emt 0:13:24]} 21. Bxe5 {[%emt 0:04:54]} dxe5 {[%emt 0:00:53]} 22. Nc4 {[%emt 0:03:03]} Qxd5 {[%emt 0:00:43]} 23. Qxd5 {[%emt 0:03:48]} Rxd5 {[%emt 0:00:02]} 24. Rxe5 {[%emt 0:00:11]} Rxe5 {[%emt 0:16:05]} 25. Nxe5 {[%emt 0:00:21]} Re8 {[%emt 0:00:05]} 26. Nc4 {[%emt 0:03:41]} Bc5 {[%emt 0:00:23]} 27. g4 {[%emt 0:01:06]} Re4 {[%emt 0:06:04]} 28. b3 {[%emt 0:00:17]} Rf4 {[%emt 0:02:17]} 29. Rh2 {[%emt 0:00:15]} b6 {[%emt 0:01:31]} 30. gxh5 {[%emt 0:03:34]} Rh4 {[%emt 0:00:27]} 31. Kg2 {[%emt 0:00:18]} Rxh5 {[%emt 0:00:23]} 32. Rh1 {[%emt 0:01:37]} Rh4 {[%emt 0:01:21]} 33. Re1 {[%emt 0:01:24]} g4 {[%emt 0:04:01]} 34. hxg4 {[%emt 0:00:14]} Rxg4+ {[%emt 0:00:01]} 35. Kf3 {[%emt 0:00:01]} Rg6 {[%emt 0:00:18]} 36. Re2 {[%emt 0:00:22]} Rf6+ {[%emt 0:00:13]} 37. Kg2 {[%emt 0:00:01]} Rg6+ {[%emt 0:00:06]} 38. Kf3 {[%emt 0:00:01]} Rf6+ {[%emt 0:00:07]} 39. Kg2 {[%emt 0:00:01]} Rg6+ {[%emt 0:00:06]} 40. Kf3 {[%emt 0:00:02]} Rf6+ {[%emt 0:00:05]} 41. Kg2 {[%emt 0:00:04]} 1/2-1/2

[Event "15th Governor Cup 2019"]
[Site "Khanty-Mansiysk"]
[Date "2019.11.23"]
[Round "7.9"]
[White "Iljiushenok, Ilia"]
[Black "Pogosyan, Stefan"]
[Result "0-1"]
[ECO "C45"]
[WhiteElo "2532"]
[BlackElo "2455"]
[Annotator "ChessBase"]
[PlyCount "123"]
[EventDate "2019.11.19"]
[EventType "swiss"]
[EventCountry "RUS"]
[SourceTitle "playchess.com"]
[Source "ChessBase"]
[SourceQuality "1"]
[TimeControl "5400+30"]

1. e4 {[%emt 0:00:00]} e5 {[%emt 0:08:46]} 2. Nf3 {[%emt 0:00:00]} Nc6 {[%emt 0:00:09]} 3. d4 {[%emt 0:00:05]} exd4 {[%emt 0:00:13]} 4. Nxd4 {[%emt 0:00:04]} Bc5 {[%emt 0:00:07]} 5. Nb3 {[%emt 0:00:06]} Bb6 {[%emt 0:00:20]} 6. Qe2 {[%emt 0:00:06]} Nge7 {[%emt 0:00:37]} 7. Nc3 {[%emt 0:01:32]} O-O {[%emt 0:00:44]} 8. Be3 {[%emt 0:00:24]} d6 {[%emt 0:00:45]} 9. O-O-O {[%emt 0:00:46]} f5 {[%emt 0:00:16]} 10. f4 {[%emt 0:01:20]} fxe4 {[%emt 0:07:44]} 11. g3 {[%emt 0:04:08]} Bxe3+ {[%emt 0:16:26]} 12. Qxe3 {[%emt 0:01:43]} Nf5 {[%emt 0:00:06]} 13. Qxe4 {[%emt 0:27:59]} Re8 {[%emt 0:00:24]} 14. Qf3 {[%emt 0:03:45]} Ne3 {[%emt 0:02:27]} 15. Rd2 {[%emt 0:00:28]} Bg4 {[%emt 0:02:44]} 16. Qf2 {[%emt 0:00:08]} Nxf1 {[%emt 0:02:59]} 17. Rxf1 {[%emt 0:02:47]} Qf6 {[%emt 0:08:22]} 18. Kb1 {[%emt 0:05:31]} Re6 {[%emt 0:05:45]} 19. Qg2 {[%emt 0:16:36]} Qf5 {[%emt 0:05:18]} 20. Rd5 {[%emt 0:05:09]} Bh3 {[%emt 0:00:40]} 21. Qd2 {[%emt 0:02:34]} Qf7 {[%emt 0:04:35]} 22. Rg1 {[%emt 0:00:16]} Rae8 {[%emt 0:03:54]} 23. Nd4 {[%emt 0:03:12]} Nxd4 {[%emt 0:00:49]} 24. Rxd4 {[%emt 0:00:01]} Qe7 {[%emt 0:01:53]} 25. b3 {[%emt 0:00:31]} c6 {[%emt 0:03:00]} 26. Kb2 {[%emt 0:00:01]} d5 {[%emt 0:02:38]} 27. g4 {[%emt 0:03:17]} Re3 {[%emt 0:00:06]} 28. Rd3 {[%emt 0:01:54]} Rxd3 {[%emt 0:06:34]} 29. Qxd3 {[%emt 0:00:08]} Qe3 {[%emt 0:00:09]} 30. Rg3 {[%emt 0:01:56]} Qxd3 {[%emt 0:00:06]} 31. cxd3 {[%emt 0:00:04]} Bf1 {[%emt 0:00:07]} 32. Kc2 {[%emt 0:00:45]} Kf7 {[%emt 0:01:02]} 33. Kd2 {[%emt 0:02:17]} g6 {[%emt 0:01:30]} 34. h4 {[%emt 0:01:06]} Re7 {[%emt 0:02:54]} 35. b4 {[%emt 0:00:36]} b6 {[%emt 0:00:41]} 36. a4 {[%emt 0:09:04]} h6 {[%emt 0:04:15]} 37. b5 {[%emt 0:01:04]} d4 {[%emt 0:01:22]} 38. Ne4 {[%emt 0:00:05]} c5 {[%emt 0:00:04]} 39. Rg1 {[%emt 0:00:48]} Bh3 {[%emt 0:00:32]} 40. f5 {[%emt 0:03:29]} gxf5 {[%emt 0:05:23]} 41. Nd6+ {[%emt 0:00:03]} Kf8 {[%emt 0:00:40]} 42. Nxf5 {[%emt 0:00:59]} Rf7 {[%emt 0:00:15]} 43. Rg3 {[%emt 0:01:12]} h5 {[%emt 0:02:30]} 44. Nh6 {[%emt 0:02:15]} Rf2+ {[%emt 0:00:05]} 45. Ke1 {[%emt 0:00:03]} Rf1+ {[%emt 0:01:04]} 46. Ke2 {[%emt 0:00:01]} Rh1 {[%emt 0:00:07]} 47. gxh5 {[%emt 0:00:17]} Be6 {[%emt 0:00:59]} 48. Rg6 {[%emt 0:00:19]} Ke7 {[%emt 0:00:15]} 49. Ng8+ {[%emt 0:00:57]} Kd6 {[%emt 0:00:57]} 50. Nf6 {[%emt 0:00:54]} Rxh4 {[%emt 0:00:35]} 51. Ne4+ {[%emt 0:02:00]} Ke5 {[%emt 0:00:22]} 52. Ng3 {[%emt 0:00:37]} Bf5 {[%emt 0:01:09]} 53. Rg5 {[%emt 0:00:33]} Kf4 {[%emt 0:00:07]} 54. Rxf5+ {[%emt 0:00:06]} Kxg3 {[%emt 0:00:04]} 55. a5 {[%emt 0:00:25]} bxa5 {[%emt 0:01:12]} 56. Rf7 {[%emt 0:00:31]} Rxh5 {[%emt 0:00:24]} 57. Rxa7 {[%emt 0:00:02]} Rh2+ {[%emt 0:00:12]} 58. Kd1 {[%emt 0:00:01]} Kf3 {[%emt 0:00:21]} 59. Rxa5 {[%emt 0:01:56]} Ke3 {[%emt 0:00:07]} 60. b6 {[%emt 0:00:23]} Kxd3 {[%emt 0:01:00]} 61. Kc1 {[%emt 0:00:11]} c4 {[%emt 0:00:51]} 62. Rc5 {[%emt 0:01:30]} 0-1

[Event "15th Governor Cup 2019"]
[Site "Khanty-Mansiysk"]
[Date "2019.11.23"]
[Round "7.10"]
[White "Bilguun, Sumiya"]
[Black "Remizov, Yaroslav"]
[Result "1-0"]
[ECO "B50"]
[WhiteElo "2496"]
[BlackElo "2394"]
[Annotator "ChessBase"]
[PlyCount "67"]
[EventDate "2019.11.19"]
[EventType "swiss"]
[EventCountry "RUS"]
[SourceTitle "playchess.com"]
[Source "ChessBase"]
[SourceQuality "1"]
[TimeControl "5400+30"]

1. e4 {[%emt 0:00:00]} c5 {[%emt 0:00:00]} 2. Nf3 {[%emt 0:00:00]} d6 {[%emt 0:00:00]} 3. c3 {[%emt 0:02:01]} Nf6 {[%emt 0:01:12]} 4. Bd3 {[%emt 0:01:15]} g6 {[%emt 0:03:15]} 5. h3 {[%emt 0:05:09]} Bg7 {[%emt 0:02:54]} 6. Bc2 {[%emt 0:01:38]} O-O {[%emt 0:07:37]} 7. d4 {[%emt 0:01:01]} b6 {[%emt 0:03:34]} 8. O-O {[%emt 0:00:18]} Bb7 {[%emt 0:03:07]} 9. Re1 {[%emt 0:03:24]} Nc6 {[%emt 0:03:42]} 10. Nbd2 {[%emt 0:06:26]} cxd4 {[%emt 0:05:34]} 11. cxd4 {[%emt 0:00:23]} Rc8 {[%emt 0:01:41]} 12. a3 {[%emt 0:03:44]} Nd7 {[%emt 0:21:10]} 13. Nb3 {[%emt 0:05:38]} e5 {[%emt 0:04:52]} 14. Bg5 {[%emt 0:06:02]} Qe8 {[%emt 0:03:15]} 15. d5 {[%emt 0:14:51]} Ne7 {[%emt 0:03:27]} 16. Nbd2 {[%emt 0:00:36]} f5 {[%emt 0:17:03]} 17. exf5 {[%emt 0:20:46]} gxf5 {[%emt 0:00:06]} 18. Nd4 {[%emt 0:02:40]} Rxc2 {[%emt 0:01:48]} 19. Qxc2 {[%emt 0:02:47]} Nxd5 {[%emt 0:00:12]} 20. Nxf5 {[%emt 0:02:06]} Qf7 {[%emt 0:05:47]} 21. g4 {[%emt 0:00:52]} Qg6 {[%emt 0:01:53]} 22. Nh6+ {[%emt 0:01:16]} Kh8 {[%emt 0:00:27]} 23. Qxg6 {[%emt 0:00:15]} hxg6 {[%emt 0:00:03]} 24. Ne4 {[%emt 0:01:46]} Rf3 {[%emt 0:07:03]} 25. Nf7+ {[%emt 0:02:42]} Rxf7 {[%emt 0:00:45]} 26. Nxd6 {[%emt 0:00:11]} Rf3 {[%emt 0:00:39]} 27. Nxb7 {[%emt 0:00:35]} Rxh3 {[%emt 0:00:15]} 28. Rad1 {[%emt 0:00:49]} N5f6 {[%emt 0:01:08]} 29. Kg2 {[%emt 0:03:03]} Rh7 {[%emt 0:00:04]} 30. Rd6 {[%emt 0:01:10]} Kg8 {[%emt 0:01:05]} 31. Nd8 {[%emt 0:01:28]} Bh8 {[%emt 0:01:10]} 32. Nc6 {[%emt 0:01:06]} Nxg4 {[%emt 0:00:38]} 33. Ne7+ {[%emt 0:00:17]} Rxe7 {[%emt 0:00:04]} 34. Bxe7 {[%emt 0:00:10]} 1-0